Cogmind - Beta 14 @@@ ROGUE MODE // 2024.11.18 @ 16:35:42 Player: Fangrelle Result: Destroyed by P8-H2E(R) with Subdweller Machine Gun Performance ------------- Evolutions (0) 0 Regions Visited (3) 600 Robots Destroyed (30) 150 Value Destroyed (493) 493 Prototype IDs (0) 0 Alien Tech Used (0) 0 Bonus (125) 125 TOTAL SCORE: 1368 Bonus ------- Follower Combat Kills 135 Friendly Fire -10 Cogmind --------- Core Integrity 0/250 Matter 300/300 Energy 265/265 System Corruption 0% Temperature Cool (0) Movement Core (550) Ox10 Location -10/Subcaves Parts ------- > --- POWER (1) -------- Improved Ion Engine > --- PROPULSION (2) --- (None) > --- UTILITY (2) ------ Large Storage Unit Visual Processing Unit > --- WEAPON (2) ------- Flail Flail > --- INVENTORY (15) --- Improved Ion Engine Cooling System Cooling System Experimental Sensor Array Signal Interpreter Improved Terrain Scanner Seismic Detector Hacking Suite Tractor Beam Grenade Launcher Datajack Mining Laser Enhanced Flamer Peak State ------------ > --- POWER ------------ Improved Ion Engine > --- PROPULSION ------- Light Treads Light Treads > --- UTILITY ---------- Large Storage Unit Visual Processing Unit > --- WEAPON ----------- Flail Flail > --- INVENTORY -------- Improved Ion Engine Cooling System Cooling System Cooling System Experimental Sensor Array Signal Interpreter Improved Terrain Scanner Seismic Detector Hacking Suite Tractor Beam Small Laser Grenade Launcher Datajack Mining Laser Enhanced Flamer [Rating: 14] Favorites ----------- Power Ion Engine Engine Ion Engine Propulsion Light Treads Treads Light Treads Leg Aluminum Leg Wheel Compact Wheel Utility Visual Processing Unit Device Seismic Detector Storage Large Storage Unit Processor Visual Processing Unit Weapon Small Laser Energy Gun Small Laser Ballistic Gun Light Assault Rifle Launcher Grenade Launcher Impact Weapon Flail Build | -11 -10 -10 -10 ------- Run | Yrd Mat Min Sub Slots Evolved . | . . . . Power . | . . . . Propulsion . | . . . . Utility . | . . . . Weapon . | . . . . Parts Attached 21 | 4 15 2 . Power 2 | . 2 . . Engine 2 | . 2 . . Core . | . . . . Reactor . | . . . . Propulsion 6 | 2 4 . . Treads 5 | 2 3 . . Leg . | . . . . Wheel 1 | . 1 . . Hover . | . . . . Flight . | . . . . Utility 6 | 2 4 . . Device 3 | 2 1 . . Storage 2 | . 2 . . Processor 1 | . 1 . . Hackware . | . . . . Protection . | . . . . Artifact . | . . . . Weapon 7 | . 5 2 . Energy Gun 2 | . 2 . . Energy Cannon . | . . . . Ballistic Gun 2 | . 2 . . Ballistic Cannon . | . . . . Launcher 1 | . 1 . . Special Weapon . | . . . . Impact Weapon 2 | . . 2 . Slashing Weapon . | . . . . Piercing Weapon . | . . . . Special Melee Weapon . | . . . . Unidentified Prototypes . | . . . . Parts Lost 5 | . 3 . 2 Power . | . . . . Propulsion 3 | . 1 . 2 Utility . | . . . . Weapon 2 | . 2 . . Highest Loss Streak 2 | . 1 . 2 To Critical Strikes . | . . . . Average Slot Usage (%) 99 | . 99 100 95 Engine 14 | . 14 14 14 Treads 26 | . 25 28 24 Device 4 | . 7 . . Storage 14 | . 14 14 14 Processor 9 | . 6 14 14 Energy Gun 9 | . 13 5 . Ballistic Gun 9 | . 13 5 . Impact Weapon 7 | . . 16 28 Peak Build Rating 14 | 9 11 14 14 Average Rating 10 | 6 8 12 13 On Entrance 9 | 6 7 11 14 Naked Turns . | . . . . Heaviest Build 31 | 14 29 31 31 Greatest Support 40 | 40 40 40 40 Greatest Overweight (x) 1 | . 1 . . Average Overweight (x) . | . . . . Largest Inventory Capacity 15 | 8 15 15 15 Average Capacity 12 | 8 10 15 15 Most Carried 15 | 7 15 15 13 Average Carried 10 | 5 9 13 13 Final Capacity 15 | 8 15 15 15 Final Carried 14 | 4 14 13 13 Class Distribution -------------------- 100% | Mutant Dominant Class ---------------- Mutant | -10/Materials Mutant | -10/Mines Mutant | -10/Subcaves Resources | -11 -10 -10 -10 ----------- Run | Yrd Mat Min Sub Matter Collected 607 | 258 284 65 . Remotely . | . . . . Salvage Created 659 | 144 393 81 41 Parts 54 | 7 40 5 2 Haulers Intercepted . | . . . . Recyclers Shooed . | . . . . Parts Field Recycled . | . . . . Retrieved Matter . | . . . . Parts Self-Destructed 3 | . . . 3 Prevented . | . . . . Kills | -11 -10 -10 -10 ------- Run | Yrd Mat Min Sub Combat Hostiles Destroyed 21 | . 17 3 1 Melee 1 | . . . 1 Guns 16 | . 14 2 . AOE 3 | . 3 . . Classes Destroyed 8 | 2 5 . 1 Builder 1 | . 1 . . Tunneler 3 | 3 . . . Recycler 1 | 1 . . . Operator 1 | . 1 . . Watcher 3 | . 3 . . Swarmer 14 | . 12 2 . Grunt 6 | . 5 1 . Subdweller 1 | . . . 1 Best Kill Streak 6 | 2 6 2 1 Combat Bots Only 3 | . 3 2 1 Max Kills in Single Turn 2 | 1 2 1 1 Gunslinging . | . . . . Exploded 1 | . 1 . . Melee 1 | . . . 1 Uniques/NPCs Destroyed 1 | . . 1 . YI-UF0 (-10/Mines) Combat | -11 -10 -10 -10 -------- Run | Yrd Mat Min Sub Hostile Shots Fired 144 | . 104 28 12 Missed 34 | . 26 6 2 Damage Taken 1337 | . 721 394 222 Core 266 | . 136 88 42 Absorbed by Shields . | . . . . Core Remaining (%) 100 | 100 . . . Volleys Fired 90 | 16 66 8 . Largest 2 | 2 2 2 . Hottest 70 | 60 70 60 . Shots Fired 160 | 32 112 16 . Gun 153 | 32 105 16 . Cannon . | . . . . Launcher 7 | . 7 . . Special . | . . . . Kinetic 74 | 16 50 8 . Thermal 60 | 16 36 8 . Explosive 7 | . 7 . . Electromagnetic 19 | . 19 . . Robot Hit Streak 7 | 5 7 3 . Robot Miss Streak 4 | 2 4 2 . Penetration Max . | . . . . Secondary Targets 2 | . 1 1 . Max Gunslinging Chain 1 | . 1 1 . Shots Hit Robots 96 | 14 63 14 5 Core Hits 44 | 5 34 4 1 Critical Kills 1 | . . . 1 Critical Parts Destroyed 1 | . . 1 . Critical Strikes 3 | . . 1 2 Smash 3 | . . 1 2 Melee Attacks 18 | . . 11 7 Impact 18 | . . 11 7 Slashing . | . . . . Piercing . | . . . . Sneak Attacks . | . . . . Combat Hostiles . | . . . . Follow-up Attacks 5 | . . 3 2 Damage Inflicted 1637 | 168 1051 252 166 Guns 996 | 168 735 93 . Cannons . | . . . . Explosions 298 | . 298 . . Melee 324 | . . 158 166 Ramming 19 | . 18 1 . Kinetic 480 | 103 326 51 . Thermal 376 | 65 269 42 . Explosive 254 | . 254 . . Electromagnetic 184 | . 184 . . Impact 324 | . . 158 166 Slashing . | . . . . Piercing . | . . . . Highest Corruption . | . . . . Average Corruption . | . . . . Corruption Purged . | . . . . Corruption Blocked . | . . . . Overload Shots . | . . . . Overflow Damage 51 | . 20 31 . Projectiles . | . . . . Explosions 20 | . 20 . . Melee 31 | . . 31 . Knockbacks 1 | . . 1 . Impact 1 | . . 1 . Kinetic . | . . . . Secondary . | . . . . Self-Inflicted Damage 1 | . 1 . . Shots 1 | . 1 . . Rammed 4 | . 3 1 . Targets Rammed 4 | . 3 1 . Kicked . | . . . . Crushed . | . . . . Highest Temperature 76 | 20 76 65 . Average Temperature 21 | 20 19 29 . Received Heat Transfer 213 | . 126 87 . Siege Activations . | . . . . Robots Corrupted 1 | . . 1 . Combat Hostiles 1 | . . 1 . Parts Fried . | . . . . Impact Corruptions 2 | . . 2 . Robots Melted . | . . . . Combat Hostiles . | . . . . Parts Melted . | . . . . Heat Transferred 775 | 150 525 100 . Parts Sabotaged . | . . . . Parts Stolen . | . . . . Parts Stripped . | . . . . Power Chain Reactions 1 | . 1 . . Alert | -11 -10 -10 -10 ------- Run | Yrd Mat Min Sub Peak Influence 221 | 20 221 162 . Initial 39 | . 13 39 . Average 106 | 12 149 63 . Maximum Alert Level 1 | . 1 . . Low Security (%) 85 | 100 73 100 . Level 1 14 | . 26 . . Level 2 . | . . . . Level 3 . | . . . . Level 4 . | . . . . Level 5 . | . . . . High Security . | . . . . Max Security . | . . . . Squads Dispatched 5 | . 4 1 . Investigation 3 | . 3 . . Extermination . | . . . . Reinforcement 1 | . 1 . . Assault 1 | . . 1 . Garrison . | . . . . Intercept . | . . . . Searches Triggered . | . . . . Construction Impeded . | . . . . Haulers Reinforced . | . . . . Active Scanning Responses . | . . . . Cargo Convoy Interrupts . | . . . . Stealth | -11 -10 -10 -10 --------- Run | Yrd Mat Min Sub Distress Signals 1 | . 1 . . Communications Jammed . | . . . . Distress Signals . | . . . . Times Spotted 32 | . 20 10 2 Peak Tracking Total 5 | . 5 4 2 Tactical Retreats 2 | . 1 1 . Traps | -11 -10 -10 -10 ------- Run | Yrd Mat Min Sub Traps Triggered 2 | . 2 . . Indirectly . | . . . . Trap Hack Attempts . | . . . . Triggered . | . . . . Disarmed . | . . . . Reprogrammed . | . . . . Reused . | . . . . Traps Extracted . | . . . . Installed . | . . . . Triggered . | . . . . Machines | -11 -10 -10 -10 ---------- Run | Yrd Mat Min Sub Machines Disabled 1 | . 1 . . Max in Single Turn 1 | . 1 . . Machines Repaired . | . . . . Machines Dismantled . | . . . . Machines Sabotaged . | . . . . Overloaded Fab Kills . | . . . . Hacking | -11 -10 -10 -10 --------- Run | Yrd Mat Min Sub Machines Accessed 8 | . 8 . . Terminals 6 | . 6 . . Fabricators . | . . . . Repair Stations . | . . . . Recycling Units 2 | . 2 . . Scanalyzers . | . . . . Garrison Access . | . . . . Total Hacks 25 | . 25 . . Successful 13 | . 13 . . Failed 12 | . 12 . . Catastrophic 1 | . 1 . . Database Lockouts . | . . . . Manual 24 | . 24 . . Terminals 20 | . 20 . . Fabricators . | . . . . Repair Stations . | . . . . Recycling Units 5 | . 5 . . Scanalyzers . | . . . . Garrison Access . | . . . . Terminal Hacks . | . . . . Fabricator Hacks . | . . . . Repair Station Hacks . | . . . . Recycling Unit Hacks 1 | . 1 . . Retrieve Components 1 | . 1 . . Scanalyzer . | . . . . Garrison Access Hacks . | . . . . Unauthorized Hacks 12 | . 12 . . Terminals 9 | . 9 . . Assimilate 3 | . 3 . . Botnet 5 | . 5 . . Operators 1 | . 1 . . Fabricators . | . . . . Repair Stations . | . . . . Recycling Units 3 | . 3 . . Monitor 1 | . 1 . . Tunnel 2 | . 2 . . Scanalyzers . | . . . . Garrison Access . | . . . . Data Cores Recovered . | . . . . Used . | . . . . Hacking Detections 8 | . 8 . . Full Trace Events . | . . . . Feedback Events . | . . . . Feedback Blocked . | . . . . Robot Schematics Acquired . | . . . . Robots Built . | . . . . Authchips . | . . . . Time . | . . . . Total Robot Build Rating . | . . . . Part Schematics Acquired . | . . . . Parts Built . | . . . . Authchips . | . . . . Time . | . . . . Total Part Build Rating . | . . . . Parts Repaired . | . . . . Time . | . . . . Parts Recycled . | . . . . Recycled Matter . | . . . . Retrieved Matter . | . . . . Retrieved Components 9 | . 9 . . Parts Scanalyzed . | . . . . Part Schematics Acquired . | . . . . Parts Damaged . | . . . . Bothacking | -11 -10 -10 -10 ------------ Run | Yrd Mat Min Sub Used RIF Installer . | . . . . Robots Hacked . | . . . . Non-combat . | . . . . Combat . | . . . . Robot Hacks Applied . | . . . . Relay Couplers Released . | . . . . Fabnet Peak Effective % . | . . . . Robots Rewired . | . . . . Allies Hacked . | . . . . Hacks Repelled . | . . . . Allies | -11 -10 -10 -10 -------- Run | Yrd Mat Min Sub Total Allies 4 | . . 4 . Largest Group 4 | . . 4 . Highest-Rated Group 71 | . . 71 . Highest-Rated Ally 31 | . . 31 . Total Orders . | . . . . Ally Attacks 39 | . . 39 . Total Damage 403 | . . 403 . Kills 6 | . . 6 . Allies Corrupted . | . . . . Allies Melted . | . . . . Intel | -11 -10 -10 -10 ------- Run | Yrd Mat Min Sub Robot Analysis Total . | . . . . Derelict Logs Recovered 2 | . . 2 . Drone Launches . | . . . . Drone Recoveries . | . . . . Exploration | -11 -10 -10 -10 ------------- Run | Yrd Mat Min Sub Turns Passed 2410 | 119 1250 979 62 Spaces Moved 1322 | 53 661 582 26 Core . | . . . . Treads 1168 | 5 555 582 26 Legs 48 | 48 . . . Wheels 106 | . 106 . . Hover . | . . . . Flight . | . . . . Fastest Speed 115 | 120 115 160 160 Average Speed 154 | 123 152 160 160 Slowest Speed 160 | 160 160 160 160 Overloaded Moves . | . . . . Propulsion Burnouts . | . . . . Robots Hopped . | . . . . Cave-ins Triggered . | . . . . Exploration Rate (%) 49 | 4 96 95 2 Regions Visited 3 Branch Regions 2 Pre-discovered Areas 2 | . 2 . . Known Exits Taken . | . . . . Unknown Exits Taken 3 | 1 1 1 . Scrap Searched 2 | . . 2 . Spaces Dug . | . . . . Terrain Destroyed 30 | . 30 . . Melee . | . . . . Projectile . | . . . . AOE 30 | . 30 . . Terrain Rammed . | . . . . Walls Destroyed . | . . . . Machines Disabled . | . . . . Actions | -11 -10 -10 -10 --------- Run | Yrd Mat Min Sub Total 1512 | 76 794 604 38 Wait 28 | . 21 . 7 Move 1319 | 52 660 581 26 Hop . | . . . . Pick Up 18 | . 16 2 . Fast Attach 6 | 2 4 . . Attach 4 | 2 2 . . Detach 2 | 1 1 . . Swap 11 | . 9 2 . Drop 18 | 3 12 3 . Fire 90 | 16 66 8 . Melee 12 | . . 7 5 Ram . | . . . . Kick . | . . . . Crush 4 | . 3 1 . Escape Stasis . | . . . . Rewire . | . . . . Trap . | . . . . Miscellaneous . | . . . . Route ------- -11/Scrapyard -10/Materials (discovered 5 exits: [*Mat x3] / [*Min x2]) -10/Mines (discovered 3 exits: [*Mat x2] / [*Sub]) -10/Subcaves History --------- Turn | Location | Event 14 | -11/Scrapyard | Discovered new exit (range 2) 120 | -11/Scrapyard | Entered Materials 197 | -10/Materials | Discovered new exit (range 10) 312 | -10/Materials | Build established: Mutant 585 | -10/Materials | Discovered new exit (range 16) 832 | -10/Materials | Discovered new exit (range 4) 943 | -10/Materials | Discovered new exit (range 16) 1058 | -10/Materials | Core integrity fell below 50% 1213 | -10/Materials | Discovered new exit (range 18) 1370 | -10/Materials | Entered Mines 1401 | -10/Mines | Assisted by bots powering up and referring to "LRC-V3" 1459 | -10/Mines | Learned 2 Materials zone layouts 1470 | -10/Mines | A weapon hastily lodged in a ceiling crevice suddenly fell to the ground 1596 | -10/Mines | Discovered new exit (range 13) 1707 | -10/Mines | Met a Derelict testing a Signal Generator 1734 | -10/Mines | Assembled infested the area 1739 | -10/Mines | Assisted by a Guerilla fighting off Assembled 1849 | -10/Mines | Found a damaged Exp. Sensor Array with a note attached 1852 | -10/Mines | Found Prototype Device 1978 | -10/Mines | Core integrity fell below 20% 2237 | -10/Mines | Learned Materials terminal intel 2241 | -10/Mines | Discovered new exit (range 6) 2346 | -10/Mines | Discovered new exit (range 3) 2349 | -10/Mines | Entered Subcaves 2411 | -10/Subcaves | Destroyed by P8-H2E(R) with Subdweller Machine Gun Last Messages --------------- 02308_ U-05 Engineer lays Concrete. 02309_ U-05 Engineer builds a Wall. 02314_ U-05 Engineer lays Concrete. 02316_ U-05 Engineer builds a Wall. 02320_ U-05 Engineer lays Concrete. 02322_ U-05 Engineer builds a Wall. 02331_ U-05 Engineer lays Concrete. 02332_ U-05 Engineer builds a Wall. 02346_ EXIT=FOUND LOCATION=UNKNOWN AMBIENT_HEAT=-10 GOAL=ESCAPE 02366_ M6-ODH(O) collects matter. 02390_ M6-ODH(O) puts together Spk. Treads. 02398_ Flail follow-up attack on BZ-ZBI(R). 02398_ BZ-ZBI(R) suffers critical hit (Smash). 02403_ Flail follow-up attack on BZ-ZBI(R). 02405_ Lgt. Treads destroyed. 02409_ BZ-ZBI(R) suffers critical hit (Smash). 02409_ BZ-ZBI(R) destroyed. Map ----- +----------------------------------------------------+ | ?????????????????????????????????????????????????? | | ?????????????????????????????????????????????????? | | ?????????????????????????????????????????????????? | | ?????????????????????????????????????????????????? | | ?????????????????????????????????????????????????? | | ?????????????????????????????????????????????????? | | ?????????????????????????????????????????????????? | | ?????????????????????????????????????????????????? | | ?????????????????????????????????????????????????? | | ?????????????????????????????????????????????????? | | ?????????????????????????????????????????????????? | | ??????????????????????##?????????????????????????? | | ?????????????????????# ##????????????????????????? | | ???????????????????## ?????????????????????????? | | ??????????????????## ??????????????????????????? | | ??????????????????# %#??????????????????????????? | | ??????????????????# #??????????????????????????? | | ?????????????????## ###?????????????????????????? | | ?????????????????# ###???????????????????????? | | ?????????????????## #???????????????????????? | | ??????????????????# # # #???????????????????????? | | ??????????????????# ## ##????#####??????????????? | | ?????????????????# ## ###### ##?????????????? | | ?????????????????# ## # ## % #?????????????? | | ?????????????????## ##????????????? | | ??????????????????# ### @# #????????????? | | ??????????????????###?#R%#### ######????????????? | | ??????????????????????##&#??####?????????????????? | | ???????????????????????# ???????????????????????? | | ??????????????????????? ???????????????????????? | | ??????????????????????? ??????????????????????? | | ?????????????????????? ??????????????????????? | | ??????????????????????## ##?????????????????????? | | ???????????????????????# ##??????????????????????? | | ???????????????????????" #???????????????????????? | | ??????????????????????? ???????????????????????? | | ???????????????????????" ???????????????????????? | | ??????????????????????? ???????????????????????? | | ???????????????????????# ???????????????????????? | | ???????????????????????? ????????????????????????? | | ????????????????????????"????????????????????????? | | ????????????????????????#????????????????????????? | | ?????????????????????????????????????????????????? | | ?????????????????????????????????????????????????? | | ?????????????????????????????????????????????????? | | ?????????????????????????????????????????????????? | | ?????????????????????????????????????????????????? | | ?????????????????????????????????????????????????? | | ?????????????????????????????????????????????????? | | ?????????????????????????????????????????????????? | +----------------------------------------------------+ Best States ------------- Heat Dissipation 25 Energy Generation 12 Energy Capacity 265 Matter Stores 300 Matter Capacity 300 Sight Range 18 Robot Scan Range 14 Terrain Scan Range 16 Terrain Scan Density 10 Evasion (%) 55 Recoil Reduction 2 Item Schematics ----------------- None Robot Schematics ------------------ None Fabricated ------------ Nothing Alien Tech Used ----------------- None Achievements -------------- None Challenges ------------ None Game ------ Seed FlightMiniShotgun Manual? 0 Play Time 00:13:25 Cumulative 110.5 hours Start 2024.11.18 @ 16:22:35 End 2024.11.18 @ 16:35:42 Sessions 1 Manual Loads 0 Difficulty Rogue Special Mode None Game No. 202 Rogue 202 Adventurer 0 Explorer 0 Win Type - Total 0 Types 0/0/0/0/0/0/0/0/0 Lore% 42 Gallery% 40 Achievement% 35 Wizard Run 0 Options --------- Layout 0 ASCII 0 Keyboard 0 Movement Mouse Keybinds 0 Fullscreen 1 Font 24/Cog Map View 91x25 Zoom Use 92% Tactical HUD 1 Map Filters NONE Filters NONE Steam 1 RUN: 887916e6-551e-4e87-b699-87a286924f1d